[Event "Early-Titled-Tuesday-Blitz-January-16-2024"]
[Site "Chess.com"]
[Date "2024.01.16"]
[Round "11"]
[White "SarochaChuemsakul"]
[Black "hmatyi07"]
[Result "1-0"]
[WhiteElo "2458"]
[BlackElo "2227"]
[TimeControl "180+1"]
[EndTime "10:09:14 PST"]
[Termination "SarochaChuemsakul won on time"]

1. d4 {[%clk 0:03:00.9]} 1... Nf6 {[%clk 0:02:59.9]} 2. c4 {[%clk 0:03:01]} 2...
e6 {[%clk 0:02:59]} 3. Nf3 {[%clk 0:03:01.1]} 3... d5 {[%clk 0:02:58.7]} 4. cxd5
{[%clk 0:03:01.7]} 4... exd5 {[%clk 0:02:58.1]} 5. Nc3 {[%clk 0:03:02.6]} 5...
c6 {[%clk 0:02:58]} 6. Bg5 {[%clk 0:03:03]} 6... Be7 {[%clk 0:02:56.3]} 7. e3
{[%clk 0:03:03.6]} 7... Bf5 {[%clk 0:02:55.3]} 8. Bd3 {[%clk 0:03:03.9]} 8...
Bxd3 {[%clk 0:02:55.6]} 9. Qxd3 {[%clk 0:03:04.8]} 9... Nbd7 {[%clk 0:02:54.2]}
10. O-O {[%clk 0:03:05.3]} 10... O-O {[%clk 0:02:54.2]} 11. Rab1 {[%clk
0:03:05.8]} 11... Ne4 {[%clk 0:02:47.5]} 12. Bxe7 {[%clk 0:03:05.6]} 12... Qxe7
{[%clk 0:02:47.2]} 13. b4 {[%clk 0:03:06.5]} 13... Ndf6 {[%clk 0:02:39.6]} 14.
a4 {[%clk 0:03:02.6]} 14... Nxc3 {[%clk 0:02:36.9]} 15. Qxc3 {[%clk 0:03:02.4]}
15... Ne4 {[%clk 0:02:37.6]} 16. Qc2 {[%clk 0:03:02.9]} 16... Rac8 {[%clk
0:02:28.1]} 17. Rfc1 {[%clk 0:03:02.9]} 17... a6 {[%clk 0:02:22.3]} 18. Ne5
{[%clk 0:03:01.7]} 18... Nd6 {[%clk 0:02:05.9]} 19. Qc5 {[%clk 0:02:57.9]} 19...
Rfe8 {[%clk 0:01:50.9]} 20. h3 {[%clk 0:02:49.1]} 20... f6 {[%clk 0:01:48.8]}
21. Nd3 {[%clk 0:02:48.1]} 21... Nc4 {[%clk 0:01:45.8]} 22. Qxe7 {[%clk
0:02:47]} 22... Rxe7 {[%clk 0:01:46.7]} 23. b5 {[%clk 0:02:39]} 23... axb5
{[%clk 0:01:44.3]} 24. axb5 {[%clk 0:02:39.2]} 24... Ree8 {[%clk 0:01:36]} 25.
bxc6 {[%clk 0:02:34.7]} 25... bxc6 {[%clk 0:01:36.9]} 26. Rb7 {[%clk 0:02:31.1]}
26... Kf8 {[%clk 0:01:28.9]} 27. Ra1 {[%clk 0:02:28.4]} 27... Rb8 {[%clk
0:01:18.9]} 28. Raa7 {[%clk 0:02:25.4]} 28... Rxb7 {[%clk 0:01:18.9]} 29. Rxb7
{[%clk 0:02:26.3]} 29... Rc8 {[%clk 0:01:03]} 30. Nc5 {[%clk 0:02:24.1]} 30...
Kg8 {[%clk 0:00:45.3]} 31. Ne6 {[%clk 0:02:23.1]} 31... g6 {[%clk 0:00:42.6]}
32. Rg7+ {[%clk 0:02:10.1]} 32... Kh8 {[%clk 0:00:39.6]} 33. Rf7 {[%clk
0:02:11]} 33... f5 {[%clk 0:00:38.3]} 34. Ng5 {[%clk 0:02:11.1]} 34... h5 {[%clk
0:00:30.7]} 35. h4 {[%clk 0:01:58]} 35... Nd2 {[%clk 0:00:25.1]} 36. Ne6 {[%clk
0:01:53.2]} 36... Ne4 {[%clk 0:00:21.6]} 37. f3 {[%clk 0:01:52]} 37... Nd6
{[%clk 0:00:11.9]} 38. Rd7 {[%clk 0:01:51.6]} 38... Ne8 {[%clk 0:00:10.3]} 39.
Nf4 {[%clk 0:01:50.7]} 39... Nf6 {[%clk 0:00:08.8]} 40. Nxg6+ {[%clk 0:01:49.6]}
40... Kg8 {[%clk 0:00:09.4]} 41. Rd6 {[%clk 0:01:40.8]} 41... Kg7 {[%clk
0:00:08.2]} 42. Ne5 {[%clk 0:01:39.2]} 42... c5 {[%clk 0:00:07.2]} 43. Nd7
{[%clk 0:01:26]} 43... cxd4 {[%clk 0:00:01.5]} 44. exd4 {[%clk 0:00:50.6]} 1-0

[Event "Early-Titled-Tuesday-Blitz-January-16-2024"]
[Site "Chess.com"]
[Date "2024.01.16"]
[Round "11"]
[White "ClayK1ng"]
[Black "topce"]
[Result "1-0"]
[WhiteElo "2306"]
[BlackElo "2361"]
[TimeControl "180+1"]
[EndTime "10:09:15 PST"]
[Termination "ClayK1ng won by resignation"]

1. e4 {[%clk 0:03:00.9]} 1... e6 {[%clk 0:02:59.6]} 2. d4 {[%clk 0:03:00.9]}
2... d5 {[%clk 0:02:59.6]} 3. Nc3 {[%clk 0:03:00.2]} 3... Nf6 {[%clk 0:02:53.9]}
4. e5 {[%clk 0:02:59.7]} 4... Nfd7 {[%clk 0:02:53.8]} 5. f4 {[%clk 0:03:00.6]}
5... c5 {[%clk 0:02:53.7]} 6. Nf3 {[%clk 0:03:01.5]} 6... Nc6 {[%clk 0:02:53.5]}
7. Be3 {[%clk 0:03:01.2]} 7... a6 {[%clk 0:02:51.3]} 8. Qd2 {[%clk 0:02:59]}
8... b5 {[%clk 0:02:49]} 9. dxc5 {[%clk 0:02:54.4]} 9... Bxc5 {[%clk 0:02:45.1]}
10. Bf2 {[%clk 0:02:54.6]} 10... h6 {[%clk 0:02:40.4]} 11. Bd3 {[%clk
0:02:54.4]} 11... Qb6 {[%clk 0:02:38.5]} 12. O-O {[%clk 0:02:53.4]} 12... Bxf2+
{[%clk 0:02:33.8]} 13. Qxf2 {[%clk 0:02:54.3]} 13... Qxf2+ {[%clk 0:02:31.4]}
14. Kxf2 {[%clk 0:02:55.2]} 14... g5 {[%clk 0:02:29.7]} 15. g3 {[%clk
0:02:54.4]} 15... Bb7 {[%clk 0:02:19.7]} 16. Ne2 {[%clk 0:02:51.1]} 16... Ke7
{[%clk 0:02:14.3]} 17. Ned4 {[%clk 0:02:50.7]} 17... Nxd4 {[%clk 0:01:56.5]} 18.
Nxd4 {[%clk 0:02:50.4]} 18... gxf4 {[%clk 0:01:53.9]} 19. gxf4 {[%clk
0:02:50.4]} 19... Rag8 {[%clk 0:01:44.1]} 20. Rg1 {[%clk 0:02:44.4]} 20... f6
{[%clk 0:01:37.4]} 21. exf6+ {[%clk 0:02:35.1]} 21... Kxf6 {[%clk 0:01:36.1]}
22. Rae1 {[%clk 0:02:34.4]} 22... Nc5 {[%clk 0:01:26.2]} 23. b4 {[%clk
0:02:31.3]} 23... Ne4+ {[%clk 0:01:26.2]} 24. Bxe4 {[%clk 0:02:23.7]} 24... dxe4
{[%clk 0:01:27.1]} 25. Rg3 {[%clk 0:02:08.3]} 25... e5 {[%clk 0:01:20]} 26.
fxe5+ {[%clk 0:02:05]} 26... Kxe5 {[%clk 0:01:20.9]} 27. Nf3+ {[%clk 0:02:05.7]}
27... Kf4 {[%clk 0:01:19.3]} 28. Nd2 {[%clk 0:01:59.8]} 28... Rxg3 {[%clk
0:01:10.5]} 29. hxg3+ {[%clk 0:02:00.7]} 29... Ke5 {[%clk 0:01:09.9]} 30. c4
{[%clk 0:01:48.7]} 30... Rf8+ {[%clk 0:01:00.5]} 31. Ke2 {[%clk 0:01:47.6]}
31... Kd4 {[%clk 0:00:54.4]} 32. c5 {[%clk 0:01:46.4]} 32... e3 {[%clk
0:00:44.2]} 33. Nb3+ {[%clk 0:01:44.6]} 33... Ke4 {[%clk 0:00:44.3]} 34. Rf1
{[%clk 0:01:39.7]} 34... Rxf1 {[%clk 0:00:39.3]} 35. Kxf1 {[%clk 0:01:40.6]}
35... Kd3 {[%clk 0:00:37]} 36. Ke1 {[%clk 0:01:26.4]} 36... Kc3 {[%clk
0:00:31.5]} 37. Na5 {[%clk 0:01:23.4]} 37... Bf3 {[%clk 0:00:27.2]} 38. a3
{[%clk 0:00:54.6]} 38... Kb2 {[%clk 0:00:25.9]} 39. c6 {[%clk 0:00:55]} 39...
Kxa3 {[%clk 0:00:25.5]} 40. c7 {[%clk 0:00:55.4]} 40... Bg4 {[%clk 0:00:24.6]}
41. Nc6 {[%clk 0:00:55.9]} 41... Ka4 {[%clk 0:00:20.8]} 42. Kf1 {[%clk
0:00:52.3]} 42... Kb3 {[%clk 0:00:20.2]} 43. Ke1 {[%clk 0:00:51.7]} 43... Kc4
{[%clk 0:00:20.1]} 44. Ne5+ {[%clk 0:00:51.4]} 44... Kxb4 {[%clk 0:00:18.6]} 45.
Nxg4 {[%clk 0:00:52.3]} 45... a5 {[%clk 0:00:18.8]} 46. c8=Q {[%clk 0:00:51.5]}
46... a4 {[%clk 0:00:19.7]} 47. Qc1 {[%clk 0:00:46.8]} 47... a3 {[%clk
0:00:20.6]} 48. Nxe3 {[%clk 0:00:45.2]} 48... Kb3 {[%clk 0:00:20.2]} 49. Qc2+
{[%clk 0:00:45]} 49... Kb4 {[%clk 0:00:20]} 50. Nd5+ {[%clk 0:00:44.8]} 50...
Ka5 {[%clk 0:00:18.1]} 51. Qc3+ {[%clk 0:00:43.3]} 51... Ka6 {[%clk 0:00:16.4]}
52. Qxa3+ {[%clk 0:00:43.5]} 52... Kb7 {[%clk 0:00:17.1]} 53. Qc5 {[%clk
0:00:42.2]} 1-0

[Event "Early-Titled-Tuesday-Blitz-January-16-2024"]
[Site "Chess.com"]
[Date "2024.01.16"]
[Round "11"]
[White "hakanazeri2"]
[Black "RobertoJBM"]
[Result "1-0"]
[WhiteElo "2585"]
[BlackElo "2786"]
[TimeControl "180+1"]
[EndTime "10:09:17 PST"]
[Termination "hakanazeri2 won on time"]

1. Nf3 {[%clk 0:02:57.1]} 1... d5 {[%clk 0:02:51.2]} 2. c4 {[%clk 0:02:57.8]}
2... c6 {[%clk 0:02:50.7]} 3. d4 {[%clk 0:02:57.7]} 3... Nf6 {[%clk 0:02:50.3]}
4. Nc3 {[%clk 0:02:57.4]} 4... dxc4 {[%clk 0:02:50.2]} 5. a4 {[%clk 0:02:56.3]}
5... Bf5 {[%clk 0:02:47.3]} 6. Ne5 {[%clk 0:02:55.6]} 6... Nbd7 {[%clk
0:02:34.9]} 7. Nxc4 {[%clk 0:02:55.1]} 7... Nb6 {[%clk 0:02:35]} 8. Ne5 {[%clk
0:02:51.3]} 8... a5 {[%clk 0:02:34.7]} 9. f3 {[%clk 0:02:49.1]} 9... Nfd7 {[%clk
0:02:33.2]} 10. Nxd7 {[%clk 0:02:43.6]} 10... Nxd7 {[%clk 0:02:32.5]} 11. e4
{[%clk 0:02:42.9]} 11... Bg6 {[%clk 0:02:32.2]} 12. Be3 {[%clk 0:02:38.4]} 12...
Qb6 {[%clk 0:02:31.4]} 13. Qd2 {[%clk 0:02:25]} 13... e5 {[%clk 0:02:31.1]} 14.
Rd1 {[%clk 0:02:15.8]} 14... O-O-O {[%clk 0:02:22.8]} 15. g3 {[%clk 0:02:08.8]}
15... exd4 {[%clk 0:02:22.3]} 16. Bxd4 {[%clk 0:02:08.4]} 16... Bc5 {[%clk
0:02:16.9]} 17. Bh3 {[%clk 0:02:07.3]} 17... Bxd4 {[%clk 0:01:02.8]} 18. Qxd4
{[%clk 0:02:05.8]} 18... Qxd4 {[%clk 0:01:03.7]} 19. Rxd4 {[%clk 0:02:06.5]}
19... Kc7 {[%clk 0:01:04.3]} 20. Bxd7 {[%clk 0:02:03.1]} 20... Rxd7 {[%clk
0:01:05.2]} 21. Rxd7+ {[%clk 0:02:03.7]} 21... Kxd7 {[%clk 0:01:06.1]} 22. h4
{[%clk 0:02:02.9]} 22... f6 {[%clk 0:01:06.1]} 23. Kf2 {[%clk 0:01:58]} 23...
Bf7 {[%clk 0:01:05.6]} 24. Ke3 {[%clk 0:01:57.5]} 24... Kc7 {[%clk 0:01:04.8]}
25. h5 {[%clk 0:01:57]} 25... Rd8 {[%clk 0:01:03.7]} 26. Ne2 {[%clk 0:01:52.6]}
26... Bc4 {[%clk 0:00:47.5]} 27. Nd4 {[%clk 0:01:49]} 27... Rd7 {[%clk
0:00:41.8]} 28. g4 {[%clk 0:01:36.7]} 28... Kb6 {[%clk 0:00:38.2]} 29. Rc1
{[%clk 0:01:34.2]} 29... Bf7 {[%clk 0:00:37.3]} 30. f4 {[%clk 0:01:29.6]} 30...
c5 {[%clk 0:00:34.4]} 31. Ne2 {[%clk 0:01:04]} 31... Bb3 {[%clk 0:00:25.7]} 32.
Nc3 {[%clk 0:01:03.3]} 32... Rd4 {[%clk 0:00:18.4]} 33. g5 {[%clk 0:01:00.9]}
33... Bxa4 {[%clk 0:00:16.4]} 34. gxf6 {[%clk 0:00:58.8]} 34... gxf6 {[%clk
0:00:17.3]} 35. Nd5+ {[%clk 0:00:56.9]} 35... Ka6 {[%clk 0:00:16.2]} 36. Nxf6
{[%clk 0:00:50.6]} 36... b6 {[%clk 0:00:14.9]} 37. e5 {[%clk 0:00:50.2]} 37...
Bb3 {[%clk 0:00:12.8]} 38. f5 {[%clk 0:00:49.2]} 38... Rd8 {[%clk 0:00:04.2]}
39. e6 {[%clk 0:00:49.1]} 39... Ba4 {[%clk 0:00:03.1]} 40. e7 {[%clk 0:00:44.9]}
40... Rd6 {[%clk 0:00:01.8]} 41. e8=Q {[%clk 0:00:40.7]} 41... Bxe8 {[%clk
0:00:01.9]} 42. Nxe8 {[%clk 0:00:41.6]} 1-0

[Event "Early-Titled-Tuesday-Blitz-January-16-2024"]
[Site "Chess.com"]
[Date "2024.01.16"]
[Round "11"]
[White "Witty_Alien"]
[Black "VeraVujovic"]
[Result "0-1"]
[WhiteElo "2329"]
[BlackElo "2248"]
[TimeControl "180+1"]
[EndTime "10:09:17 PST"]
[Termination "VeraVujovic won by resignation"]

1. e4 {[%clk 0:03:00.9]} 1... e5 {[%clk 0:02:59]} 2. d4 {[%clk 0:03:00.8]} 2...
exd4 {[%clk 0:02:57.2]} 3. c3 {[%clk 0:03:00.7]} 3... Nf6 {[%clk 0:02:56]} 4. e5
{[%clk 0:03:00.1]} 4... Qe7 {[%clk 0:02:55.7]} 5. Nf3 {[%clk 0:02:59.1]} 5... d6
{[%clk 0:02:54.2]} 6. cxd4 {[%clk 0:02:59.3]} 6... Nbd7 {[%clk 0:02:52.8]} 7.
Bb5 {[%clk 0:02:37.3]} 7... c6 {[%clk 0:02:51.3]} 8. O-O {[%clk 0:02:37.5]} 8...
dxe5 {[%clk 0:02:46.5]} 9. dxe5 {[%clk 0:02:37.5]} 9... Nd5 {[%clk 0:02:40.7]}
10. Bg5 {[%clk 0:02:18.9]} 10... Qe6 {[%clk 0:02:37.1]} 11. Nd4 {[%clk
0:01:42.7]} 11... Qg6 {[%clk 0:02:34]} 12. e6 {[%clk 0:01:29.8]} 12... fxe6
{[%clk 0:02:25.8]} 13. Bd3 {[%clk 0:01:04.4]} 13... Qxg5 {[%clk 0:02:13.5]} 14.
Nxe6 {[%clk 0:01:04.7]} 14... Qe7 {[%clk 0:02:03.9]} 15. Re1 {[%clk 0:00:45.9]}
15... Kf7 {[%clk 0:01:35.1]} 16. Qh5+ {[%clk 0:00:35.1]} 16... g6 {[%clk
0:01:23.3]} 17. Bxg6+ {[%clk 0:00:23.5]} 17... Kg8 {[%clk 0:00:53.7]} 18. Nc3
{[%clk 0:00:23.4]} 18... N7f6 {[%clk 0:00:46.4]} 19. Nxd5 {[%clk 0:00:15.7]}
19... cxd5 {[%clk 0:00:44.1]} 20. Qf5 {[%clk 0:00:02]} 20... Bxe6 {[%clk
0:00:31.6]} 21. Rxe6 {[%clk 0:00:01.9]} 21... hxg6 {[%clk 0:00:31.8]} 22. Qxg6+
{[%clk 0:00:01.9]} 22... Qg7 {[%clk 0:00:32.1]} 23. Rxf6 {[%clk 0:00:01.9]}
23... Qxg6 {[%clk 0:00:31.8]} 24. Rxg6+ {[%clk 0:00:02.8]} 24... Kf7 {[%clk
0:00:32.2]} 25. Rg3 {[%clk 0:00:03]} 25... Bd6 {[%clk 0:00:31.7]} 26. Rd3 {[%clk
0:00:02.9]} 26... Bxh2+ {[%clk 0:00:30.9]} 27. Kf1 {[%clk 0:00:03.5]} 27... Bc7
{[%clk 0:00:26.2]} 28. Rf3+ {[%clk 0:00:01.2]} 28... Ke7 {[%clk 0:00:21.5]} 29.
Re1+ {[%clk 0:00:01.1]} 29... Kd6 {[%clk 0:00:21.1]} 30. Rf6+ {[%clk 0:00:01.7]}
30... Kd7 {[%clk 0:00:20.4]} 31. Rf7+ {[%clk 0:00:02.1]} 31... Kc6 {[%clk
0:00:20.1]} 32. Rf6+ {[%clk 0:00:02.2]} 32... Kb5 {[%clk 0:00:19.8]} 33. Rf7
{[%clk 0:00:02.1]} 33... Rh1+ {[%clk 0:00:19.2]} 34. Ke2 {[%clk 0:00:02.6]}
34... Re8+ {[%clk 0:00:19.6]} 35. Kd2 {[%clk 0:00:03.1]} 35... Ba5+ {[%clk
0:00:19.5]} 36. b4 {[%clk 0:00:03.1]} 36... Bxb4+ {[%clk 0:00:19.8]} 37. Kc2
{[%clk 0:00:03.7]} 0-1

[Event "Early-Titled-Tuesday-Blitz-January-16-2024"]
[Site "Chess.com"]
[Date "2024.01.16"]
[Round "11"]
[White "kai_nov"]
[Black "PawnEatingZombie"]
[Result "0-1"]
[WhiteElo "2290"]
[BlackElo "2159"]
[TimeControl "180+1"]
[EndTime "10:09:21 PST"]
[Termination "PawnEatingZombie won on time"]

1. d4 {[%clk 0:03:00.9]} 1... Nf6 {[%clk 0:02:57.3]} 2. Nc3 {[%clk 0:02:59.8]}
2... g6 {[%clk 0:02:57.8]} 3. e4 {[%clk 0:02:59.1]} 3... d6 {[%clk 0:02:56.9]}
4. Nf3 {[%clk 0:02:59.3]} 4... Bg7 {[%clk 0:02:57.4]} 5. Bg5 {[%clk 0:02:58.5]}
5... O-O {[%clk 0:02:56.5]} 6. Bc4 {[%clk 0:02:58]} 6... e6 {[%clk 0:02:53]} 7.
O-O {[%clk 0:02:57.1]} 7... h6 {[%clk 0:02:51.9]} 8. Bh4 {[%clk 0:02:55.5]} 8...
g5 {[%clk 0:02:50.9]} 9. Nxg5 {[%clk 0:02:49.7]} 9... hxg5 {[%clk 0:02:49.3]}
10. Bxg5 {[%clk 0:02:48]} 10... Qe8 {[%clk 0:02:48.9]} 11. e5 {[%clk 0:02:46.9]}
11... Nh7 {[%clk 0:02:45.5]} 12. Bf4 {[%clk 0:02:42.5]} 12... dxe5 {[%clk
0:02:42]} 13. dxe5 {[%clk 0:02:36.5]} 13... Qe7 {[%clk 0:02:10.6]} 14. Qg4
{[%clk 0:02:30]} 14... f5 {[%clk 0:02:02.6]} 15. Qg3 {[%clk 0:02:26.8]} 15...
Nc6 {[%clk 0:01:50.3]} 16. Rad1 {[%clk 0:02:15.4]} 16... Bd7 {[%clk 0:01:49.9]}
17. Nb5 {[%clk 0:02:12.6]} 17... Rac8 {[%clk 0:01:44.5]} 18. Qg6 {[%clk
0:02:00]} 18... Rfe8 {[%clk 0:01:34.3]} 19. Bh6 {[%clk 0:01:53]} 19... Nf8
{[%clk 0:01:29]} 20. Qg3 {[%clk 0:01:46]} 20... a6 {[%clk 0:01:23]} 21. Nc3
{[%clk 0:01:23.5]} 21... Rcd8 {[%clk 0:01:21.2]} 22. Ne2 {[%clk 0:01:14.4]}
22... Nxe5 {[%clk 0:01:09.1]} 23. Bb3 {[%clk 0:00:59]} 23... Neg6 {[%clk
0:00:58.2]} 24. Bxg7 {[%clk 0:00:54.9]} 24... Qxg7 {[%clk 0:00:59.1]} 25. Qxc7
{[%clk 0:00:50.2]} 25... Bc6 {[%clk 0:00:59.4]} 26. Qb6 {[%clk 0:00:42.4]} 26...
Rxd1 {[%clk 0:00:51.8]} 27. Rxd1 {[%clk 0:00:40.6]} 27... Nh4 {[%clk 0:00:32.4]}
28. Ng3 {[%clk 0:00:32]} 28... f4 {[%clk 0:00:29.6]} 29. Qb4 {[%clk 0:00:19]}
29... Nxg2 {[%clk 0:00:26.7]} 30. Nh5 {[%clk 0:00:18.3]} 30... Qg5 {[%clk
0:00:20.6]} 31. Kf1 {[%clk 0:00:15.9]} 31... Qxh5 {[%clk 0:00:18.8]} 32. Qd4
{[%clk 0:00:13.6]} 32... Qg5 {[%clk 0:00:12.7]} 33. c3 {[%clk 0:00:06]} 33...
Nh4 {[%clk 0:00:12.5]} 34. Re1 {[%clk 0:00:02.6]} 34... Bf3 {[%clk 0:00:08.6]}
0-1

[Event "Early-Titled-Tuesday-Blitz-January-16-2024"]
[Site "Chess.com"]
[Date "2024.01.16"]
[Round "11"]
[White "forevery0ung"]
[Black "vladgoncharov"]
[Result "0-1"]
[WhiteElo "2835"]
[BlackElo "2634"]
[TimeControl "180+1"]
[EndTime "10:09:22 PST"]
[Termination "vladgoncharov won by resignation"]

1. c4 {[%clk 0:03:00.9]} 1... Nf6 {[%clk 0:02:58.5]} 2. Nc3 {[%clk 0:03:00.8]}
2... c5 {[%clk 0:02:56.2]} 3. g3 {[%clk 0:02:59.2]} 3... Nc6 {[%clk 0:02:55.7]}
4. Bg2 {[%clk 0:02:59.7]} 4... g6 {[%clk 0:02:56.1]} 5. Nf3 {[%clk 0:02:57.4]}
5... d6 {[%clk 0:02:55.1]} 6. d4 {[%clk 0:02:57.2]} 6... cxd4 {[%clk 0:02:55.1]}
7. Nxd4 {[%clk 0:02:57.7]} 7... Bd7 {[%clk 0:02:55.8]} 8. O-O {[%clk 0:02:57.3]}
8... Bg7 {[%clk 0:02:56]} 9. b3 {[%clk 0:02:43.7]} 9... O-O {[%clk 0:02:49.1]}
10. Bb2 {[%clk 0:02:43.3]} 10... Nxd4 {[%clk 0:02:49]} 11. Qxd4 {[%clk
0:02:43.5]} 11... Bc6 {[%clk 0:02:49.7]} 12. Rfd1 {[%clk 0:02:31]} 12... Qa5
{[%clk 0:02:24.3]} 13. Qd3 {[%clk 0:02:22.7]} 13... Bxg2 {[%clk 0:02:14.8]} 14.
Kxg2 {[%clk 0:02:23.6]} 14... Rfc8 {[%clk 0:02:14.2]} 15. Rac1 {[%clk
0:02:23.6]} 15... a6 {[%clk 0:02:08.8]} 16. a3 {[%clk 0:02:17.9]} 16... Rab8
{[%clk 0:01:48.7]} 17. b4 {[%clk 0:02:17.8]} 17... Qd8 {[%clk 0:01:33.4]} 18. e4
{[%clk 0:02:16]} 18... Nd7 {[%clk 0:01:30.1]} 19. Qe2 {[%clk 0:02:14.6]} 19...
Bxc3 {[%clk 0:01:20]} 20. Bxc3 {[%clk 0:02:12.8]} 20... Qe8 {[%clk 0:01:09.8]}
21. Ba1 {[%clk 0:02:08.3]} 21... f6 {[%clk 0:01:06]} 22. c5 {[%clk 0:02:01.1]}
22... dxc5 {[%clk 0:00:55.2]} 23. Qc4+ {[%clk 0:02:00.9]} 23... Kg7 {[%clk
0:00:55.1]} 24. Qe6 {[%clk 0:01:59.5]} 24... Nf8 {[%clk 0:00:53.7]} 25. Qd5
{[%clk 0:01:53]} 25... cxb4 {[%clk 0:00:50.5]} 26. e5 {[%clk 0:01:40.8]} 26...
bxa3 {[%clk 0:00:37.8]} 27. Qf3 {[%clk 0:01:34.5]} 27... Qf7 {[%clk 0:00:25.2]}
28. Rxc8 {[%clk 0:01:13.7]} 28... Rxc8 {[%clk 0:00:24.6]} 29. Qxb7 {[%clk
0:01:13.6]} 29... Rc2 {[%clk 0:00:23.3]} 30. Re1 {[%clk 0:00:55.5]} 30... Ne6
{[%clk 0:00:11.8]} 31. Qe4 {[%clk 0:00:31.6]} 31... Ra2 {[%clk 0:00:10.7]} 32.
Qc4 {[%clk 0:00:23.9]} 32... Rxa1 {[%clk 0:00:09]} 33. Rxa1 {[%clk 0:00:22.6]}
33... g5 {[%clk 0:00:09.5]} 34. Rxa3 {[%clk 0:00:21.6]} 34... Nf4+ {[%clk
0:00:09.6]} 35. Qxf4 {[%clk 0:00:15]} 35... gxf4 {[%clk 0:00:09.2]} 36. exf6+
{[%clk 0:00:14.9]} 36... Qxf6 {[%clk 0:00:08.6]} 37. gxf4 {[%clk 0:00:14.3]}
37... Qb6 {[%clk 0:00:08.3]} 0-1

[Event "Early-Titled-Tuesday-Blitz-January-16-2024"]
[Site "Chess.com"]
[Date "2024.01.16"]
[Round "11"]
[White "SmirnovTimofey2000"]
[Black "Viktor_Poddubnyi"]
[Result "0-1"]
[WhiteElo "1987"]
[BlackElo "2265"]
[TimeControl "180+1"]
[EndTime "10:09:23 PST"]
[Termination "Viktor_Poddubnyi won on time"]

1. e4 {[%clk 0:03:00.9]} 1... g6 {[%clk 0:03:00.4]} 2. d4 {[%clk 0:02:59]} 2...
Bg7 {[%clk 0:03:00.9]} 3. Nc3 {[%clk 0:02:58.7]} 3... d6 {[%clk 0:03:01.5]} 4.
Bf4 {[%clk 0:02:58.5]} 4... a6 {[%clk 0:03:00.4]} 5. Nf3 {[%clk 0:02:57.5]} 5...
b5 {[%clk 0:03:00.8]} 6. a3 {[%clk 0:02:57]} 6... Bb7 {[%clk 0:03:00.4]} 7. Qd2
{[%clk 0:02:52]} 7... Nd7 {[%clk 0:02:58.9]} 8. Be2 {[%clk 0:02:42.9]} 8... c5
{[%clk 0:02:23.7]} 9. dxc5 {[%clk 0:02:39.8]} 9... Nxc5 {[%clk 0:02:21.6]} 10.
O-O-O {[%clk 0:02:38.4]} 10... Nxe4 {[%clk 0:02:13.4]} 11. Nxe4 {[%clk
0:02:34.1]} 11... Bxe4 {[%clk 0:02:14.3]} 12. Qe3 {[%clk 0:02:16.8]} 12... Nf6
{[%clk 0:01:52.3]} 13. Bh6 {[%clk 0:02:02.5]} 13... O-O {[%clk 0:01:46.5]} 14.
Bxg7 {[%clk 0:01:47.7]} 14... Kxg7 {[%clk 0:01:47.4]} 15. Ng5 {[%clk 0:01:40.5]}
15... Bb7 {[%clk 0:01:12.1]} 16. h4 {[%clk 0:01:37.9]} 16... h5 {[%clk
0:00:54.4]} 17. Bf3 {[%clk 0:01:21.6]} 17... Bxf3 {[%clk 0:00:50.4]} 18. Qxf3
{[%clk 0:01:21.6]} 18... Qc7 {[%clk 0:00:49.7]} 19. g4 {[%clk 0:01:10.5]} 19...
Nxg4 {[%clk 0:00:44.9]} 20. Rhe1 {[%clk 0:00:51.1]} 20... Rac8 {[%clk
0:00:43.7]} 21. Rd2 {[%clk 0:00:49.5]} 21... Ne5 {[%clk 0:00:43.9]} 22. Qe4
{[%clk 0:00:29.6]} 22... Qc4 {[%clk 0:00:38.4]} 23. Rd4 {[%clk 0:00:19.9]} 23...
Qa2 {[%clk 0:00:31.2]} 24. f4 {[%clk 0:00:17.4]} 24... Nc4 {[%clk 0:00:17.8]}
25. Rxc4 {[%clk 0:00:15.1]} 25... Qxc4 {[%clk 0:00:16]} 26. Qxc4 {[%clk
0:00:09.7]} 26... Rxc4 {[%clk 0:00:16.9]} 27. Rxe7 {[%clk 0:00:09.7]} 27... Rxf4
{[%clk 0:00:13.2]} 28. Ra7 {[%clk 0:00:07]} 28... Re8 {[%clk 0:00:10.1]} 29.
Rxa6 {[%clk 0:00:04.6]} 29... Rxh4 {[%clk 0:00:10]} 30. Rxd6 {[%clk 0:00:03.2]}
30... Rg4 {[%clk 0:00:10.4]} 0-1

[Event "Early-Titled-Tuesday-Blitz-January-16-2024"]
[Site "Chess.com"]
[Date "2024.01.16"]
[Round "11"]
[White "Roman_Ovetchkin"]
[Black "Gabrielian_Artur"]
[Result "0-1"]
[WhiteElo "2660"]
[BlackElo "2791"]
[TimeControl "180+1"]
[EndTime "10:09:24 PST"]
[Termination "Gabrielian_Artur won by resignation"]

1. d4 {[%clk 0:03:00.9]} 1... Nf6 {[%clk 0:02:59.6]} 2. c4 {[%clk 0:03:00.8]}
2... g6 {[%clk 0:02:59.8]} 3. Nc3 {[%clk 0:03:00.2]} 3... Bg7 {[%clk 0:03:00.2]}
4. e4 {[%clk 0:03:00.3]} 4... O-O {[%clk 0:03:00.2]} 5. Nf3 {[%clk 0:02:54.6]}
5... d6 {[%clk 0:03:00.3]} 6. Be2 {[%clk 0:02:54.5]} 6... e5 {[%clk 0:03:00.4]}
7. d5 {[%clk 0:02:54.4]} 7... Na6 {[%clk 0:02:54.4]} 8. Nd2 {[%clk 0:02:50.5]}
8... h5 {[%clk 0:02:30.1]} 9. Rb1 {[%clk 0:02:45.4]} 9... c5 {[%clk 0:02:17.6]}
10. a3 {[%clk 0:02:41.1]} 10... Bh6 {[%clk 0:02:10.7]} 11. Nf1 {[%clk
0:02:27.8]} 11... Bxc1 {[%clk 0:02:10.1]} 12. Qxc1 {[%clk 0:02:28.7]} 12... Nh7
{[%clk 0:02:09.5]} 13. h4 {[%clk 0:02:25]} 13... f5 {[%clk 0:02:06.9]} 14. exf5
{[%clk 0:02:14.1]} 14... Bxf5 {[%clk 0:02:05.7]} 15. Ra1 {[%clk 0:02:14]} 15...
Qf6 {[%clk 0:01:52.9]} 16. Ng3 {[%clk 0:02:05.3]} 16... Qe7 {[%clk 0:01:26.9]}
17. Nxf5 {[%clk 0:01:48.7]} 17... gxf5 {[%clk 0:01:18.7]} 18. Bxh5 {[%clk
0:01:47.6]} 18... Kh8 {[%clk 0:01:18.4]} 19. Bg6 {[%clk 0:01:44.6]} 19... e4
{[%clk 0:01:17.8]} 20. Qf4 {[%clk 0:01:38.6]} 20... Nc7 {[%clk 0:01:13.3]} 21.
Nd1 {[%clk 0:01:07]} 21... b5 {[%clk 0:01:08.3]} 22. Bxh7 {[%clk 0:01:00.4]}
22... Kxh7 {[%clk 0:01:05.9]} 23. b3 {[%clk 0:01:00.6]} 23... Rab8 {[%clk
0:00:58.6]} 24. O-O {[%clk 0:00:58.1]} 24... Qe5 {[%clk 0:00:46.5]} 25. Qxe5
{[%clk 0:00:55.9]} 25... dxe5 {[%clk 0:00:46.6]} 26. Ne3 {[%clk 0:00:46.5]}
26... Ne8 {[%clk 0:00:46.4]} 27. cxb5 {[%clk 0:00:42.7]} 27... Rxb5 {[%clk
0:00:45]} 28. Nc4 {[%clk 0:00:39.5]} 28... Rxb3 {[%clk 0:00:42.9]} 29. Rab1
{[%clk 0:00:39.3]} 29... Rxb1 {[%clk 0:00:24.8]} 30. Rxb1 {[%clk 0:00:40.2]}
30... Nf6 {[%clk 0:00:24.6]} 31. Rb7+ {[%clk 0:00:37.8]} 31... Kh6 {[%clk
0:00:22.9]} 32. d6 {[%clk 0:00:38.1]} 32... f4 {[%clk 0:00:18.6]} 33. Nxe5
{[%clk 0:00:37.7]} 33... e3 {[%clk 0:00:19.1]} 34. Kf1 {[%clk 0:00:36.4]} 34...
Ne4 {[%clk 0:00:17.7]} 35. d7 {[%clk 0:00:32.3]} 35... exf2 {[%clk 0:00:15]} 36.
Nc6 {[%clk 0:00:32]} 36... f3 {[%clk 0:00:11.8]} 37. gxf3 {[%clk 0:00:30.5]}
37... Rxf3 {[%clk 0:00:11.8]} 0-1